bitfinex-derivatives/quotes_SOLF0:USTF0_20240918
["timestamp","ask_amount","ask_price","bid_price","bid_amount"]
[1726659345279,12.85437233,129.69,129.6,9.5]
[1726659345478,9.5,129.65,129.6,9.5]
[1726659345881,9.5,129.65,129.6,13.41753594]
[1726659348885,12.85437233,129.69,129.6,13.41753594]
[1726659348886,12.35437233,129.69,129.6,3.91753594]
[1726659349186,9.5,129.64,129.6,13.30414359]
[1726659352486,9.5,129.64,129.61,9.5]
[1726659353179,154.42,129.71,129.61,9.5]
[1726659353386,154.42,129.71,129.57,2.874]
[1726659353387,154.42,129.71,129.62,9.5]
[1726659353582,9.5,129.66,129.62,13.29555925]
[1726659354482,154.42,129.71,129.62,9.5]
[1726659354688,9.5,129.66,129.62,9.5]
[1726659354881,9.5,129.66,129.62,13.27780315]
[1726659355788,7.5,129.66,129.62,9.5]
[1726659355988,7.5,129.66,129.62,13.29603817]
[1726659356590,7.5,129.66,129.63,9.5]
[1726659357388,7.5,129.66,129.63,13.39175932]
[1726659361190,7.5,129.66,129.63,3.89175932]
[1726659361394,7.5,129.66,129.62,9.5]
[1726659361699,9.5,129.65,129.61,9.5]
[1726659362583,15.70824861,129.72,129.62,9.5]
[1726659362789,9.5,129.68,129.64,9.5]
[1726659363086,9.5,129.68,129.64,13.4323688]
[1726659364898,150.6,129.73,129.65,9.5]
[1726659365194,9.5,129.69,129.65,13.26834321]
[1726659371399,150.6,129.73,129.65,13.26834321]
[1726659371599,9.5,129.69,129.65,13.26834321]
[1726659371992,150.6,129.73,129.65,13.26834321]
[1726659372303,9.5,129.69,129.65,3.76834321]
[1726659372496,9.5,129.69,129.64,9.5]
[1726659372697,150.6,129.73,129.64,9.5]
[1726659372898,150.6,129.73,129.58,1.4872]
[1726659373097,9.5,129.69,129.65,9.5]
[1726659373399,9.5,129.69,129.65,13.35874183]
[1726659373995,154.38,129.76,129.65,13.35874183]
[1726659374201,9.5,129.69,129.65,13.35874183]
[1726659374998,6.5,129.69,129.65,9.5]
[1726659375403,6.5,129.69,129.65,13.41786998]
[1726659375603,154.38,129.76,129.65,3.91786998]
[1726659375604,9.5,129.68,129.65,3.91786998]
[1726659375803,9.5,129.68,129.58,1.4872]
[1726659375804,9.5,129.68,129.64,9.5]
[1726659376006,9.5,129.68,129.64,3.82873101]
[1726659376205,9.5,129.67,129.62,9.5]
[1726659376402,8.05808925,129.75,129.62,3.90204878]
[1726659376607,9.5,129.64,129.6,9.5]
[1726659376907,9.5,129.64,129.6,13.33760632]
[1726659377302,9.5,129.64,129.6,3.83760632]
[1726659377498,166.1126202,129.75,129.59,9.5]
[1726659377499,9.5,129.63,129.59,9.5]
[1726659377708,9.5,129.63,129.59,13.35034046]
[1726659378098,9.5,129.64,129.6,9.5]
[1726659378699,9.5,129.64,129.61,9.5]
[1726659381413,254.08450307,129.75,129.6,3.93884795]
[1726659381713,9.5,129.62,129.59,9.5]
[1726659382004,9.5,129.62,129.59,13.28089901]
[1726659382597,9.5,129.62,129.59,3.78089901]
[1726659382798,9.5,129.62,129.58,10.9872]
[1726659385506,9.5,129.61,129.53,6.41727614]
[1726659385712,9.5,129.6,129.56,9.5]
[1726659385908,9.5,129.6,129.56,13.32249223]
[1726659388012,162.44204065,129.7,129.56,13.32249223]
[1726659388211,9.5,129.6,129.56,13.32249223]
[1726659392712,9.5,129.59,129.56,3.82249223]
[1726659393110,9.5,129.58,129.54,11.0125]
[1726659393313,9.5,129.58,129.54,14.96406649]
[1726659403623,154.46,129.66,129.54,11.0125]
[1726659403825,9.5,129.58,129.54,11.0125]
[1726659404024,9.5,129.58,129.54,14.8596371]
[1726659404526,154.46,129.66,129.56,9.5]
[1726659404723,154.46,129.66,129.57,9.5]
[1726659404923,9.5,129.61,129.56,9.5]
[1726659405127,9.5,129.61,129.56,13.29084664]
[1726659406320,154.46,129.66,129.54,1.5125]
[1726659406630,9.5,129.62,129.57,9.5]
[1726659406830,9.5,129.62,129.58,1.4254]
[1726659407126,9.5,129.62,129.58,5.25563406]
[1726659407330,9.5,129.62,129.58,1.4254]
[1726659407921,9.5,129.62,129.58,5.26246799]
[1726659408136,9.5,129.62,129.58,1.4254]
[1726659408629,9.5,129.62,129.58,5.20610297]
[1726659408830,9.5,129.62,129.58,1.4254]
[1726659409333,9.5,129.62,129.58,5.25474675]
[1726659409530,9.5,129.62,129.58,6.66944675]
[1726659410428,9.5,129.63,129.59,9.5]
[1726659410628,9.5,129.63,129.59,13.45250046]
[1726659411626,9.5,129.63,129.59,9.5]
[1726659411820,9.5,129.64,129.6,9.5]
[1726659414519,9.5,129.63,129.59,9.5]
[1726659418424,154.44,129.71,129.58,6.69685714]
[1726659418425,154.44,129.71,129.6,9.5]
[1726659418732,9.5,129.64,129.6,9.5]
[1726659420120,9.5,129.63,129.58,16.19685714]
[1726659421732,5.8,129.63,129.58,12.3401]
[1726659421931,5.8,129.63,129.58,16.18845267]
[1726659422133,154.44,129.71,129.6,9.5]
[1726659422430,9.5,129.64,129.6,9.5]
[1726659427429,9.5,129.63,129.59,9.5]
[1726659429941,5.7,129.63,129.59,9.5]
[1726659430136,5.7,129.63,129.59,13.31524976]
[1726659432142,154.44,129.71,129.6,9.5]
[1726659432143,9.5,129.64,129.6,9.5]
[1726659435351,154.44,129.71,129.59,5.23404976]
[1726659435352,9.5,129.62,129.59,5.23404976]
[1726659436348,9.5,129.62,129.58,2.8401]
[1726659436647,9.5,129.62,129.58,6.73361841]
[1726659436849,9.5,129.62,129.58,2.8401]
[1726659437439,9.5,129.62,129.58,6.7637289]
[1726659437645,9.5,129.62,129.58,2.8401]
[1726659438143,9.5,129.62,129.58,6.76257081]
[1726659438345,9.5,129.62,129.58,2.8401]
[1726659438845,9.5,129.62,129.58,6.77067748]
[1726659439038,9.5,129.62,129.58,2.8401]
[1726659439646,9.5,129.62,129.58,6.7177911]
[1726659439849,9.5,129.62,129.58,2.8401]
[1726659440050,154.44,129.71,129.58,12.3401]
[1726659440244,9.5,129.63,129.59,9.5]
[1726659442550,154.44,129.71,129.59,9.5]
[1726659442750,9.5,129.64,129.59,9.5]
[1726659443145,9.5,129.64,129.59,13.35993363]
[1726659445754,154.44,129.71,129.59,13.35993363]
[1726659445755,9.5,129.62,129.59,3.85993363]
[1726659445958,9.5,129.62,129.58,12.3401]
[1726659446155,9.5,129.62,129.58,2.8401]
[1726659446347,9.5,129.62,129.58,12.3401]
[1726659446657,9.5,129.62,129.58,16.28843495]
[1726659451665,9.5,129.63,129.58,16.28843495]
[1726659451960,9.5,129.63,129.59,9.5]
[1726659452358,154.44,129.71,129.59,9.5]
[1726659452556,9.5,129.64,129.59,9.5]
[1726659453357,9.5,129.64,129.6,9.5]
[1726659455455,154.44,129.71,129.6,9.5]
[1726659455662,154.44,129.71,129.62,9.5]
[1726659455857,9.5,129.67,129.62,9.5]
[1726659456061,154.44,129.71,129.63,9.5]
[1726659456364,9.5,129.68,129.63,9.5]
[1726659462564,154.44,129.71,129.63,9.5]
[1726659462565,9.5,129.67,129.63,9.5]
[1726659462769,9.5,129.66,129.62,9.5]
[1726659464271,9.5,129.67,129.63,9.5]
[1726659469368,5.7,129.67,129.63,9.5]
[1726659469563,9.5,129.68,129.64,9.5]
[1726659470368,9.5,129.68,129.64,13.26274502]
[1726659471362,9.5,129.65,129.58,2.8401]
[1726659471562,9.5,129.61,129.58,6.61557916]
[1726659471764,9.5,129.61,129.58,2.8401]
[1726659472168,9.5,129.62,129.58,12.3401]
[1726659472383,9.5,129.62,129.58,16.27224765]
[1726659473077,6.64,129.62,129.58,12.3401]
[1726659473277,9.5,129.63,129.59,9.5]
[1726659473475,9.5,129.63,129.59,13.44361266]
[1726659475980,8.06060899,129.72,129.59,3.94361266]
[1726659476176,9.5,129.62,129.58,12.3401]
[1726659476680,9.5,129.62,129.58,16.25137071]
[1726659478273,9.5,129.63,129.59,9.5]
[1726659478474,154.4,129.71,129.58,2.8401]
[1726659478677,9.5,129.64,129.6,9.5]
[1726659479380,9.5,129.64,129.6,13.42045127]
[1726659479781,9.5,129.64,129.6,3.92045127]
[1726659479980,9.5,129.64,129.59,9.5]
[1726659480386,9.5,129.62,129.58,12.3401]
[1726659480891,9.5,129.61,129.58,6.79181915]
[1726659483689,154.4,129.7,129.58,6.79181915]
[1726659483690,154.4,129.7,129.58,2.8401]
[1726659483876,9.5,129.62,129.58,16.16095339]
[1726659484083,9.5,129.62,129.58,12.3401]
[1726659484681,9.5,129.62,129.58,16.11076536]
[1726659485585,7.5,129.62,129.58,12.3401]
[1726659485990,7.5,129.62,129.58,16.1996476]
[1726659488095,9.5,129.61,129.58,6.6996476]
[1726659489388,9.5,129.6,129.58,6.6996476]
[1726659489593,9.5,129.59,129.58,3.8595476]
[1726659489794,9.5,129.6,129.55,9.5]
[1726659490397,9.5,129.6,129.55,13.41891308]
[1726659491593,9.5,129.6,129.56,9.5]
[1726659491899,9.5,129.6,129.56,13.42895069]
[1726659492092,8.0617605,129.69,129.54,2.9411]
[1726659492294,9.5,129.61,129.57,9.5]
[1726659492498,9.5,129.6,129.56,9.5]
[1726659492693,9.5,129.6,129.54,6.71080331]
[1726659492694,9.5,129.59,129.55,9.5]
[1726659494796,9.5,129.61,129.57,9.5]
[1726659494993,9.5,129.63,129.59,9.5]
[1726659495795,9.5,129.63,129.59,13.28485585]
[1726659497801,5.7,129.63,129.59,9.5]
[1726659498201,5.7,129.63,129.59,13.31805973]
[1726659503000,9.5,129.62,129.59,3.81805973]
[1726659503207,9.5,129.62,129.58,9.5]
[1726659503696,9.5,129.62,129.58,13.27037421]
[1726659506301,9.5,129.61,129.58,3.77037421]
[1726659506503,9.5,129.61,129.57,9.5]
[1726659507008,9.5,129.61,129.57,13.36649548]
[1726659510711,9.5,129.61,129.57,3.86649548]
[1726659511010,9.5,129.61,129.56,9.5]
[1726659511202,9.5,129.61,129.56,13.3521244]
[1726659512006,9.5,129.6,129.56,13.3521244]
[1726659512202,9.5,129.58,129.56,3.8521244]
[1726659512509,9.5,129.58,129.55,9.5]
[1726659512902,9.5,129.58,129.55,13.36495205]
[1726659514407,9.5,129.59,129.55,13.36495205]
[1726659516508,9.5,129.6,129.57,9.5]
[1726659516714,9.5,129.6,129.57,13.32925947]
[1726659517012,9.5,129.61,129.57,13.32925947]
[1726659517306,9.5,129.63,129.59,9.5]
[1726659517511,9.5,129.62,129.58,9.5]
[1726659517814,9.5,129.62,129.58,13.31536157]
[1726659521114,9.5,129.62,129.58,3.81536157]
[1726659521314,9.5,129.62,129.57,9.5]
[1726659521615,9.5,129.62,129.57,13.41157274]
[1726659525312,9.5,129.61,129.57,3.91157274]
[1726659525613,9.5,129.6,129.55,9.5]
[1726659525815,9.5,129.6,129.55,13.4127361]
[1726659526316,9.5,129.6,129.55,3.9127361]
[1726659526517,9.5,129.58,129.54,12.4411]
[1726659527111,158.05453095,129.69,129.54,12.4411]
[1726659527112,9.5,129.57,129.54,6.80171776]
[1726659527313,9.5,129.56,129.54,6.80171776]
[1726659527816,9.5,129.55,129.54,3.86061776]
[1726659528018,9.5,129.55,129.5,9.5]
[1726659528215,9.5,129.55,129.49,3.0347]
[1726659528216,9.5,129.53,129.49,3.0347]
[1726659528718,9.5,129.53,129.5,9.5]
[1726659529510,97.47075667,129.67,129.51,9.5]
[1726659529511,14.59910051,129.66,129.51,9.5]
[1726659529813,14.59910051,129.66,129.52,9.5]
[1726659530015,22.66294702,129.67,129.53,9.5]
[1726659530213,9.5,129.57,129.53,9.5]
[1726659530717,9.5,129.57,129.53,13.45433258]
[1726659535123,5.6,129.57,129.53,9.5]
[1726659535425,5.6,129.57,129.53,13.43548899]
[1726659540424,9.5,129.56,129.53,3.93548899]
[1726659540725,9.5,129.56,129.52,9.5]
[1726659541122,9.5,129.56,129.52,13.42072373]
[1726659541723,9.5,129.54,129.52,3.92072373]
[1726659542021,9.5,129.53,129.49,12.5347]
[1726659542223,9.5,129.53,129.49,16.46276157]
[1726659543619,9.5,129.54,129.5,9.5]
[1726659543821,9.5,129.56,129.52,9.5]
[1726659544024,9.5,129.56,129.49,3.0347]
[1726659544229,9.5,129.56,129.52,9.5]
[1726659545031,9.5,129.56,129.51,9.5]
[1726659545221,9.5,129.52,129.49,6.85800611]
[1726659545425,9.5,129.53,129.5,9.5]
[1726659548943,8.06599592,129.63,129.5,9.5]
[1726659548944,30.30924084,129.6,129.5,9.5]
[1726659549234,8.06599592,129.63,129.5,13.34030201]
[1726659549235,9.5,129.54,129.5,13.34030201]
[1726659550631,9.5,129.54,129.51,9.5]
[1726659550831,9.5,129.58,129.53,9.5]
[1726659551031,9.5,129.58,129.54,9.5]
[1726659551237,9.5,129.6,129.55,9.5]
[1726659551833,9.5,129.6,129.56,2.8343]
[1726659552032,9.5,129.6,129.56,6.69168616]
[1726659552238,9.5,129.6,129.56,2.8343]
[1726659552537,9.5,129.61,129.57,9.5]
[1726659552731,9.5,129.61,129.57,13.42072964]
[1726659553350,9.5,129.62,129.58,9.5]
[1726659553639,10.90710288,129.63,129.56,2.8343]
[1726659553640,9.5,129.63,129.59,9.5]
[1726659555944,9.5,129.63,129.58,9.5]
[1726659556937,6.5,129.63,129.58,9.5]
[1726659557138,6.5,129.63,129.58,13.38309319]
[1726659559537,6.5,129.63,129.59,9.5]
[1726659560346,9.5,129.64,129.6,9.5]
[1726659561846,9.5,129.64,129.6,13.3773899]
[1726659562142,9.5,129.64,129.6,9.5]
[1726659562143,8.5,129.64,129.6,9.5]
[1726659562746,8.5,129.64,129.6,13.29324984]
[1726659566351,9.5,129.63,129.6,3.79324984]
[1726659566653,9.5,129.63,129.59,9.5]
[1726659567047,9.5,129.63,129.59,13.36503906]
[1726659567746,9.5,129.64,129.6,9.5]
[1726659568049,14.3501478,129.68,129.62,9.5]
[1726659568246,9.5,129.67,129.62,9.5]
[1726659568549,9.5,129.64,129.6,9.5]
[1726659568746,9.5,129.64,129.59,9.5]
[1726659569352,14.3501478,129.7,129.59,9.5]
[1726659569554,9.5,129.63,129.59,13.37400308]
[1726659572753,9.5,129.64,129.59,13.37400308]
[1726659575655,14.34927228,129.7,129.61,9.5]
[1726659575857,9.5,129.66,129.62,9.5]
[1726659576655,9.5,129.66,129.62,13.38991199]
[1726659577551,29.96410802,129.73,129.63,9.5]
[1726659577750,9.5,129.68,129.64,9.5]
[1726659577952,9.5,129.68,129.64,13.33009688]
[1726659578751,14.34589503,129.74,129.64,3.83009688]
[1726659578752,9.5,129.67,129.64,3.83009688]
[1726659579060,9.5,129.66,129.63,2.9472]
[1726659579261,9.5,129.65,129.63,2.9472]
[1726659579462,9.5,129.65,129.63,6.8647676]
[1726659579761,9.5,129.65,129.63,2.9472]
[1726659580253,9.5,129.65,129.63,6.82579643]
[1726659585061,9.5,129.65,129.63,3.87859643]
[1726659585364,6.5,129.65,129.63,3.86191656]
[1726659585563,6.5,129.65,129.61,9.5]
[1726659586166,6.5,129.65,129.61,13.318225]
[1726659591769,9.5,129.66,129.62,9.5]
[1726659592570,9.5,129.66,129.62,13.28860612]
[1726659600576,9.5,129.67,129.62,9.5]
[1726659600978,9.5,129.68,129.63,9.5]
[1726659601179,9.5,129.68,129.63,12.4592]
[1726659601883,9.5,129.68,129.63,16.26988626]
[1726659615485,9.5,129.67,129.63,16.26988626]
[1726659616089,14.34684673,129.75,129.64,9.5]
[1726659616288,5.7,129.69,129.64,9.5]
[1726659616890,5.7,129.69,129.64,13.36731838]
[1726659619593,9.5,129.67,129.64,3.86731838]
[1726659619787,9.5,129.67,129.63,2.9592]
[1726659620487,9.5,129.67,129.63,6.83239448]
[1726659626498,9.5,129.65,129.63,3.87319448]
[1726659626697,9.5,129.65,129.57,1.5379]
[1726659626698,9.5,129.65,129.6,9.5]
[1726659626899,9.5,129.65,129.6,13.41478291]
[1726659633001,9.5,129.65,129.59,2.9029]
[1726659633002,14.34684673,129.73,129.62,9.5]
[1726659633197,9.5,129.67,129.62,9.5]
[1726659633403,9.5,129.67,129.63,9.5]
[1726659636403,6.5,129.67,129.63,9.5]
[1726659636600,9.5,129.68,129.63,9.5]
[1726659637003,9.5,129.68,129.63,13.3727202]
[1726659639715,9.5,129.67,129.63,13.3727202]
[1726659642404,9.5,129.67,129.63,3.8727202]
[1726659642604,9.5,129.66,129.62,9.5]
[1726659643112,9.5,129.66,129.62,3.86191694]
[1726659643417,9.5,129.66,129.61,9.5]
[1726659643808,9.5,129.66,129.61,13.41392736]
[1726659650916,9.5,129.66,129.62,9.5]
[1726659659523,9.5,129.67,129.62,9.5]
[1726659659915,9.5,129.67,129.63,9.5]
[1726659660622,9.5,129.67,129.63,13.35526862]
[1726659661722,23.60674346,129.67,129.63,13.35526862]
[1726659661916,9.5,129.67,129.63,13.35526862]
[1726659662118,5.7,129.67,129.63,9.5]
[1726659662323,9.5,129.68,129.63,12.3577]
[1726659662623,9.5,129.68,129.63,16.17862238]
[1726659663615,9.5,129.67,129.63,16.17862238]
[1726659664022,9.5,129.65,129.63,6.67862238]
[1726659665127,9.5,129.65,129.63,3.82092238]
[1726659665330,9.5,129.65,129.62,1.396]
[1726659665938,9.5,129.65,129.62,5.3316206]
[1726659666931,14.10451185,129.74,129.62,1.396]
[1726659667134,9.5,129.67,129.63,9.5]
[1726659667428,9.5,129.67,129.63,13.26574612]
[1726659668629,9.5,129.67,129.63,3.76574612]
[1726659668823,9.5,129.67,129.63,9.5]
[1726659669028,9.5,129.67,129.63,13.42935677]
[1726659670826,9.5,129.66,129.63,3.92935677]
[1726659671033,9.5,129.66,129.62,10.896]
[1726659671229,9.5,129.65,129.62,1.396]
[1726659671528,9.5,129.65,129.62,3.9513609]
[1726659671726,9.5,129.65,129.57,1.4697]
[1726659671926,9.5,129.65,129.61,9.5]
[1726659672131,9.5,129.64,129.57,1.4697]
[1726659672435,9.5,129.62,129.58,9.5]
[1726659673224,9.5,129.62,129.58,13.35654759]
[1726659675234,9.5,129.63,129.59,9.5]
[1726659675435,9.5,129.64,129.6,9.5]
[1726659675635,9.5,129.65,129.61,9.5]
[1726659675839,9.5,129.65,129.61,13.40209585]
[1726659677940,23.60451185,129.65,129.61,13.40209585]
[1726659678132,9.5,129.65,129.61,13.40209585]
[1726659681438,6.5,129.65,129.61,9.5]
[1726659681735,9.5,129.66,129.61,13.41585692]
[1726659684231,9.5,129.66,129.62,9.5]
[1726659684934,9.5,129.66,129.62,13.45329046]
[1726659696359,14.1072933,129.73,129.62,13.45329046]
[1726659696658,9.5,129.67,129.62,13.45329046]
[1726659697054,9.5,129.67,129.63,9.5]
[1726659697363,11.1072933,129.73,129.63,9.5]
[1726659697558,7.3072933,129.73,129.57,1.4697]
[1726659697862,9.5,129.65,129.6,9.5]
[1726659698055,9.5,129.65,129.6,13.32778145]
[1726659698459,9.5,129.66,129.62,9.5]
[1726659699256,9.5,129.66,129.62,13.27162033]
[1726659702958,9.5,129.66,129.62,3.77162033]
[1726659703159,9.5,129.66,129.61,12.531]
[1726659703662,9.5,129.65,129.61,16.31072387]
[1726659708973,9.5,129.66,129.61,16.31072387]
[1726659719264,9.5,129.66,129.61,6.81072387]
[1726659719464,9.5,129.66,129.61,16.31072387]
[1726659720161,9.5,129.66,129.61,6.81072387]
[1726659720561,9.5,129.66,129.61,16.31072387]
[1726659725167,154.38,129.73,129.62,9.5]
[1726659725378,9.5,129.66,129.62,9.5]
[1726659726577,9.5,129.67,129.63,9.5]
[1726659728982,9.5,129.67,129.62,1.4446]
[1726659729182,9.5,129.65,129.62,1.4446]
[1726659730976,154.38,129.75,129.62,1.4446]
[1726659731280,9.5,129.66,129.62,1.4446]
[1726659731980,9.5,129.66,129.62,10.9446]
[1726659732186,154.38,129.75,129.64,9.5]
[1726659732378,9.5,129.68,129.64,13.42327234]
[1726659736381,9.5,129.67,129.64,13.42327234]
[1726659738886,154.38,129.76,129.64,13.42327234]
[1726659739186,9.5,129.69,129.65,9.5]
[1726659739987,9.5,129.69,129.65,13.34416633]
[1726659740689,5.7,129.69,129.65,9.5]
[1726659741186,9.5,129.7,129.66,9.5]
[1726659741988,9.5,129.7,129.66,13.32341942]
[1726659743686,154.38,129.76,129.66,13.32341942]
[1726659743987,9.5,129.72,129.68,9.5]
[1726659744294,9.5,129.73,129.68,9.5]
[1726659745189,9.5,129.73,129.68,13.3450272]
[1726659745691,154.38,129.76,129.68,13.3450272]
[1726659745883,9.5,129.73,129.68,13.3450272]
[1726659747296,154.38,129.76,129.68,13.3450272]
[1726659747497,9.5,129.73,129.68,13.3450272]
[1726659750299,162.39567987,129.8,129.68,3.8450272]
[1726659750505,9.5,129.71,129.67,9.5]
[1726659750703,9.5,129.71,129.67,13.27556561]
[1726659759012,9.5,129.72,129.68,9.5]
[1726659760515,154.34,129.79,129.68,9.5]
[1726659760821,9.5,129.73,129.69,9.5]
[1726659762123,9.5,129.73,129.69,13.38579675]
[1726659767229,154.34,129.79,129.71,9.5]
[1726659767428,9.5,129.74,129.71,3.95146038]
[1726659767729,9.5,129.74,129.7,9.5]
[1726659767929,154.34,129.79,129.7,3.91520137]
[1726659768125,9.5,129.73,129.69,9.5]
[1726659768320,9.5,129.73,129.69,13.42600192]
[1726659773238,9.5,129.73,129.69,3.92600192]
[1726659773441,9.5,129.73,129.69,9.5]
[1726659773632,9.5,129.73,129.69,13.39436795]
[1726659781642,154.32,129.8,129.69,3.89436795]
[1726659781941,154.32,129.8,129.62,1.4446]
[1726659781942,9.5,129.71,129.67,9.5]
[1726659782143,9.5,129.71,129.67,13.40401033]
[1726659783242,9.5,129.69,129.67,3.90401033]
[1726659783447,251.78232586,129.8,129.62,1.4446]
[1726659783448,89.40691016,129.79,129.62,1.4446]
[1726659783749,9.5,129.68,129.63,9.5]
[1726659784137,9.5,129.66,129.62,10.9446]
[1726659784541,89.40691016,129.77,129.58,3.87932809]
[1726659784749,9.5,129.64,129.6,9.5]
[1726659784941,9.5,129.64,129.6,13.28338142]
[1726659787552,9.5,129.64,129.6,3.78338142]
[1726659787747,9.5,129.64,129.59,12.3374]
[1726659788349,9.5,129.64,129.59,16.28765604]
[1726659789453,154.34,129.72,129.59,2.8374]
[1726659789753,9.5,129.65,129.61,9.5]
[1726659792254,154.34,129.72,129.61,9.5]
[1726659792553,9.5,129.66,129.61,9.5]
[1726659798358,9.5,129.66,129.6,1.4761]
[1726659798562,9.5,129.66,129.61,9.5]
[1726659801171,154.34,129.72,129.64,9.5]
[1726659801371,9.5,129.67,129.64,9.5]
[1726659801565,9.5,129.67,129.63,9.5]
[1726659802370,9.5,129.67,129.63,13.3033772]
[1726659810372,9.5,129.67,129.63,3.8033772]
[1726659810672,9.5,129.67,129.62,9.5]
[1726659811175,9.5,129.67,129.62,13.31002987]
[1726659821281,9.5,129.66,129.62,13.31002987]
[1726659844488,9.5,129.66,129.62,3.81002987]
[1726659844690,9.5,129.66,129.61,9.5]
[1726659844883,9.5,129.66,129.61,13.30240416]
[1726659846986,154.38,129.73,129.61,13.30240416]
[1726659847186,9.5,129.67,129.61,13.30240416]
[1726659849882,9.5,129.67,129.63,9.5]
[1726659850194,5.3,129.67,129.63,9.5]
[1726659850585,5.3,129.67,129.63,13.32169421]
[1726659852492,9.5,129.68,129.64,12.391]
[1726659852691,154.38,129.74,129.67,9.5]
[1726659852996,9.5,129.71,129.67,13.33597298]
[1726659853592,9.5,129.7,129.67,3.83597298]
[1726659853791,9.5,129.7,129.66,9.5]
[1726659854396,9.5,129.7,129.66,13.27489643]
[1726659863705,154.36,129.77,129.66,13.27489643]
[1726659864003,9.5,129.7,129.66,13.27489643]
[1726659865198,154.36,129.77,129.66,9.5]
[1726659865404,154.36,129.77,129.67,9.5]
[1726659865405,9.5,129.71,129.67,9.5]
[1726659865605,154.36,129.77,129.67,9.5]
[1726659865901,9.5,129.71,129.67,9.5]
[1726659874008,5.7,129.71,129.67,9.5]
[1726659874207,5.7,129.71,129.67,13.43286284]
[1726659900132,5.7,129.71,129.67,3.93286284]
[1726659900336,9.5,129.7,129.64,4.4056]
[1726659900533,154.32,129.78,129.67,9.5]
[1726659900834,9.5,129.71,129.67,13.26120748]
[1726659905344,9.5,129.71,129.67,3.76120748]
[1726659905639,9.5,129.71,129.66,9.5]
[1726659906037,9.5,129.71,129.66,13.30556076]
[1726659907845,9.5,129.71,129.67,9.5]
[1726659908536,9.5,129.71,129.67,13.32099131]
[1726659911241,9.5,129.72,129.68,9.5]
[1726659912141,154.32,129.79,129.68,9.5]
[1726659912444,9.5,129.72,129.68,9.5]
[1726659913344,9.5,129.71,129.67,13.32099131]
[1726659923654,9.5,129.73,129.68,9.5]
[1726659923955,9.5,129.73,129.68,12.3996]
[1726659924349,9.5,129.73,129.69,9.5]
[1726659924751,147.42,129.79,129.71,9.5]
[1726659924947,9.5,129.75,129.71,9.5]
[1726659925148,9.5,129.74,129.7,9.5]
[1726659929554,147.42,129.79,129.68,8.14522391]
[1726659929751,9.5,129.71,129.68,8.14522391]
[1726659930649,9.5,129.72,129.68,17.64522391]
[1726659931160,9.5,129.73,129.69,9.5]
[1726659932556,9.5,129.71,129.68,8.14522391]